[Event "Late-Titled-Tuesday-Blitz-May-14-2024"]
[Site "Chess.com"]
[Date "2024.05.14"]
[Round "10"]
[White "zverr1"]
[Black "schondeln"]
[Result "1-0"]
[WhiteElo "2450"]
[BlackElo "2343"]
[TimeControl "180+1"]
[EndTime "15:53:18 PDT"]
[Termination "zverr1 won on time"]

1. e4 {[%clk 0:03:00.9]} 1... d5 {[%clk 0:02:59.4]} 2. exd5 {[%clk 0:02:58.1]}
2... Qxd5 {[%clk 0:03:00.3]} 3. Nc3 {[%clk 0:02:58.8]} 3... Qa5 {[%clk
0:03:00.4]} 4. d4 {[%clk 0:02:58.6]} 4... Nf6 {[%clk 0:03:00.6]} 5. Bd2 {[%clk
0:02:58.9]} 5... Bg4 {[%clk 0:03:00.4]} 6. Be2 {[%clk 0:02:53.7]} 6... Bxe2
{[%clk 0:02:56.5]} 7. Qxe2 {[%clk 0:02:54.6]} 7... Qa6 {[%clk 0:02:51.7]} 8. Nb5
{[%clk 0:02:48.2]} 8... Qc6 {[%clk 0:02:44.6]} 9. Nf3 {[%clk 0:02:43.3]} 9... a6
{[%clk 0:02:42.9]} 10. Nc3 {[%clk 0:02:42.8]} 10... Nbd7 {[%clk 0:02:37.5]} 11.
O-O-O {[%clk 0:02:40.4]} 11... e6 {[%clk 0:02:31]} 12. d5 {[%clk 0:02:36.1]}
12... Nxd5 {[%clk 0:02:27]} 13. Nxd5 {[%clk 0:02:36.2]} 13... Qxd5 {[%clk
0:02:26]} 14. Bc3 {[%clk 0:02:35.8]} 14... Qb5 {[%clk 0:02:19.4]} 15. Qe4 {[%clk
0:02:14.1]} 15... O-O-O {[%clk 0:02:13.1]} 16. Rhe1 {[%clk 0:02:06.9]} 16... Bc5
{[%clk 0:01:06.8]} 17. Nd4 {[%clk 0:02:03.6]} 17... Qb6 {[%clk 0:00:58.6]} 18.
Nb3 {[%clk 0:01:53.5]} 18... Bxf2 {[%clk 0:00:47.4]} 19. Re2 {[%clk 0:01:53.8]}
19... Bc5 {[%clk 0:00:40.3]} 20. Bxg7 {[%clk 0:01:51.4]} 20... Rhg8 {[%clk
0:00:40.1]} 21. Bc3 {[%clk 0:01:51]} 21... Bd6 {[%clk 0:00:34.2]} 22. Qxh7
{[%clk 0:01:47.9]} 22... Qb5 {[%clk 0:00:23.6]} 23. Qd3 {[%clk 0:01:41.4]} 23...
Qxd3 {[%clk 0:00:22.2]} 24. Rxd3 {[%clk 0:01:42.3]} 24... Bxh2 {[%clk
0:00:22.4]} 25. Rf3 {[%clk 0:01:38.1]} 25... Rdf8 {[%clk 0:00:17.8]} 26. Ref2
{[%clk 0:01:36]} 26... f6 {[%clk 0:00:11.7]} 27. Bxf6 {[%clk 0:01:25.2]} 27...
Nxf6 {[%clk 0:00:06.6]} 28. Rxf6 {[%clk 0:01:26.1]} 28... Rxf6 {[%clk
0:00:07.1]} 29. Rxf6 {[%clk 0:01:26.2]} 29... Rxg2 {[%clk 0:00:08]} 30. Rxe6
{[%clk 0:01:23]} 30... Bf4+ {[%clk 0:00:06.5]} 31. Kd1 {[%clk 0:01:23.5]} 31...
Rg1+ {[%clk 0:00:04.7]} 32. Ke2 {[%clk 0:01:23.7]} 32... Rg2+ {[%clk 0:00:05.1]}
33. Kd3 {[%clk 0:01:23.7]} 33... Rg3+ {[%clk 0:00:05.4]} 34. Kc4 {[%clk
0:01:24]} 34... Rg2 {[%clk 0:00:05.9]} 35. Nd4 {[%clk 0:01:21.7]} 35... b5+
{[%clk 0:00:03]} 36. Kd5 {[%clk 0:01:20.2]} 36... Bc1 {[%clk 0:00:00.4]} 37. Kc6
{[%clk 0:01:19.6]} 1-0

[Event "Late-Titled-Tuesday-Blitz-May-14-2024"]
[Site "Chess.com"]
[Date "2024.05.14"]
[Round "10"]
[White "CarlosjPineror"]
[Black "Ramil_Faizrakhmanov"]
[Result "0-1"]
[WhiteElo "2740"]
[BlackElo "2864"]
[TimeControl "180+1"]
[EndTime "15:53:22 PDT"]
[Termination "Ramil_Faizrakhmanov won by resignation"]

1. e4 {[%clk 0:02:47.9]} 1... e5 {[%clk 0:02:59.3]} 2. Nf3 {[%clk 0:02:47.6]}
2... Nc6 {[%clk 0:02:59.3]} 3. Bb5 {[%clk 0:02:48.1]} 3... Nf6 {[%clk
0:02:59.7]} 4. d4 {[%clk 0:02:47.3]} 4... exd4 {[%clk 0:02:56.8]} 5. e5 {[%clk
0:02:46.9]} 5... Ne4 {[%clk 0:02:55.4]} 6. O-O {[%clk 0:02:46.9]} 6... d5 {[%clk
0:02:48.3]} 7. Nxd4 {[%clk 0:02:43.5]} 7... Bd7 {[%clk 0:02:47.9]} 8. Bxc6
{[%clk 0:02:36.6]} 8... bxc6 {[%clk 0:02:47.1]} 9. Be3 {[%clk 0:02:37.3]} 9...
Be7 {[%clk 0:02:38.5]} 10. Nd2 {[%clk 0:02:36.9]} 10... Nxd2 {[%clk 0:02:37.9]}
11. Qxd2 {[%clk 0:02:37.8]} 11... c5 {[%clk 0:02:36.2]} 12. Nb3 {[%clk
0:02:32.3]} 12... d4 {[%clk 0:02:34.6]} 13. Bf4 {[%clk 0:02:32.3]} 13... Be6
{[%clk 0:02:31.3]} 14. Rfe1 {[%clk 0:02:25.8]} 14... O-O {[%clk 0:02:31.3]} 15.
Rad1 {[%clk 0:02:20.9]} 15... Qd5 {[%clk 0:02:30.9]} 16. Nc1 {[%clk 0:02:17]}
16... Rfd8 {[%clk 0:02:26.3]} 17. b3 {[%clk 0:02:16.1]} 17... c4 {[%clk
0:02:25.2]} 18. Bg5 {[%clk 0:02:05.1]} 18... Bxg5 {[%clk 0:02:20.8]} 19. Qxg5
{[%clk 0:02:04.4]} 19... h6 {[%clk 0:02:21.3]} 20. Qf4 {[%clk 0:02:00.3]} 20...
c5 {[%clk 0:02:20.2]} 21. Ne2 {[%clk 0:01:58.7]} 21... Qb7 {[%clk 0:02:08.4]}
22. Ng3 {[%clk 0:01:45.7]} 22... a5 {[%clk 0:02:00.2]} 23. Ne4 {[%clk
0:01:33.5]} 23... Qe7 {[%clk 0:01:54.2]} 24. Nd6 {[%clk 0:01:18.2]} 24... cxb3
{[%clk 0:01:53.1]} 25. axb3 {[%clk 0:01:17.5]} 25... a4 {[%clk 0:01:53.6]} 26.
bxa4 {[%clk 0:01:16.4]} 26... Rxa4 {[%clk 0:01:54.5]} 27. c3 {[%clk 0:01:15.1]}
27... Bb3 {[%clk 0:01:26.7]} 28. Nf5 {[%clk 0:01:03.9]} 28... Qg5 {[%clk
0:01:24.3]} 29. Qxg5 {[%clk 0:00:50.2]} 29... hxg5 {[%clk 0:01:25.2]} 30. Rd2
{[%clk 0:00:50.5]} 30... d3 {[%clk 0:01:24.3]} 31. g3 {[%clk 0:00:30.9]} 31...
c4 {[%clk 0:01:24.1]} 32. Nd4 {[%clk 0:00:18.6]} 32... Rxd4 {[%clk 0:01:19.6]}
33. cxd4 {[%clk 0:00:19.3]} 33... Ra2 {[%clk 0:01:09.9]} 34. d5 {[%clk
0:00:11.6]} 34... Rxd2 {[%clk 0:01:06.3]} 35. d6 {[%clk 0:00:12.1]} 35... Ba4
{[%clk 0:01:06.2]} 0-1

[Event "Late-Titled-Tuesday-Blitz-May-14-2024"]
[Site "Chess.com"]
[Date "2024.05.14"]
[Round "10"]
[White "marik_spb"]
[Black "Seppppppy"]
[Result "1-0"]
[WhiteElo "2505"]
[BlackElo "2337"]
[TimeControl "180+1"]
[EndTime "15:53:26 PDT"]
[Termination "marik_spb won by checkmate"]

1. d4 {[%clk 0:02:57.5]} 1... Nf6 {[%clk 0:02:59.9]} 2. c4 {[%clk 0:02:57.6]}
2... c5 {[%clk 0:02:56.7]} 3. d5 {[%clk 0:02:57.1]} 3... b5 {[%clk 0:02:55.8]}
4. cxb5 {[%clk 0:02:58]} 4... a6 {[%clk 0:02:53.9]} 5. bxa6 {[%clk 0:02:58.9]}
5... g6 {[%clk 0:02:54.3]} 6. Nc3 {[%clk 0:02:58.7]} 6... Bg7 {[%clk 0:02:54.5]}
7. e4 {[%clk 0:02:58.5]} 7... O-O {[%clk 0:02:53.4]} 8. Nf3 {[%clk 0:02:58.7]}
8... Qa5 {[%clk 0:02:53.6]} 9. Bd2 {[%clk 0:02:53]} 9... Bxa6 {[%clk 0:02:52.8]}
10. Bxa6 {[%clk 0:02:52.9]} 10... Qxa6 {[%clk 0:02:53.7]} 11. Qe2 {[%clk
0:02:53.2]} 11... Qxe2+ {[%clk 0:02:53.7]} 12. Kxe2 {[%clk 0:02:54.1]} 12... d6
{[%clk 0:02:54.3]} 13. Rhe1 {[%clk 0:02:49.1]} 13... Nbd7 {[%clk 0:02:54.5]} 14.
Kf1 {[%clk 0:02:47.8]} 14... Rfb8 {[%clk 0:02:54.8]} 15. Rab1 {[%clk 0:02:41.7]}
15... Nb6 {[%clk 0:02:54.8]} 16. Bg5 {[%clk 0:02:37.6]} 16... Nfd7 {[%clk
0:02:54.7]} 17. Bxe7 {[%clk 0:02:31.8]} 17... Nc4 {[%clk 0:02:55.4]} 18. b3
{[%clk 0:01:48.9]} 18... Bxc3 {[%clk 0:02:48.1]} 19. bxc4 {[%clk 0:01:49.2]}
19... Bxe1 {[%clk 0:02:44.8]} 20. Rxb8+ {[%clk 0:01:32.6]} 20... Nxb8 {[%clk
0:02:38.2]} 21. Kxe1 {[%clk 0:01:33.5]} 21... Ra6 {[%clk 0:02:37.4]} 22. e5
{[%clk 0:01:29.9]} 22... dxe5 {[%clk 0:02:31]} 23. Nxe5 {[%clk 0:01:26.3]} 23...
f6 {[%clk 0:02:16.2]} 24. Nd3 {[%clk 0:01:24.4]} 24... Nd7 {[%clk 0:02:07.4]}
25. Nxc5 {[%clk 0:01:15.5]} 25... Nxc5 {[%clk 0:02:06.9]} 26. Bxc5 {[%clk
0:01:16.4]} 26... Rxa2 {[%clk 0:02:07.2]} 27. Be3 {[%clk 0:01:04.1]} 27... Kf7
{[%clk 0:01:58.2]} 28. c5 {[%clk 0:01:01.9]} 28... Ke7 {[%clk 0:01:57.2]} 29.
Bf4 {[%clk 0:00:25.9]} 29... Ra4 {[%clk 0:01:47.3]} 30. Be3 {[%clk 0:00:16.9]}
30... f5 {[%clk 0:01:41.3]} 31. g3 {[%clk 0:00:15.1]} 31... Kf6 {[%clk
0:01:32.3]} 32. Kd2 {[%clk 0:00:13.7]} 32... Ke5 {[%clk 0:01:31.8]} 33. d6
{[%clk 0:00:14.1]} 33... Ke6 {[%clk 0:01:30.8]} 34. Kc3 {[%clk 0:00:14.2]} 34...
h6 {[%clk 0:01:28.4]} 35. Kb3 {[%clk 0:00:14.4]} 35... Ra8 {[%clk 0:01:25.6]}
36. Bxh6 {[%clk 0:00:13.9]} 36... Rh8 {[%clk 0:01:26.2]} 37. Be3 {[%clk
0:00:13.7]} 37... Rxh2 {[%clk 0:01:25.7]} 38. Kc4 {[%clk 0:00:14.2]} 38... Kd7
{[%clk 0:01:21.3]} 39. Kd5 {[%clk 0:00:14.1]} 39... Rh1 {[%clk 0:01:09.7]} 40.
c6+ {[%clk 0:00:15]} 40... Kc8 {[%clk 0:01:10.1]} 41. d7+ {[%clk 0:00:13.7]}
41... Kc7 {[%clk 0:01:10.2]} 42. Bf4+ {[%clk 0:00:13.9]} 42... Kd8 {[%clk
0:01:09.7]} 43. Bg5+ {[%clk 0:00:14.4]} 43... Kc7 {[%clk 0:01:09]} 44. d8=Q#
{[%clk 0:00:15.3]} 1-0

[Event "Late-Titled-Tuesday-Blitz-May-14-2024"]
[Site "Chess.com"]
[Date "2024.05.14"]
[Round "10"]
[White "PenguinPacks"]
[Black "Abund"]
[Result "1-0"]
[WhiteElo "2570"]
[BlackElo "2768"]
[TimeControl "180+1"]
[EndTime "15:53:28 PDT"]
[Termination "PenguinPacks won by resignation"]

1. e4 {[%clk 0:03:00.9]} 1... c6 {[%clk 0:02:58]} 2. d4 {[%clk 0:03:00.6]} 2...
d5 {[%clk 0:02:58.9]} 3. e5 {[%clk 0:03:01.3]} 3... Bf5 {[%clk 0:02:53.8]} 4.
Nf3 {[%clk 0:03:01.8]} 4... e6 {[%clk 0:02:53.3]} 5. Be2 {[%clk 0:03:02.4]} 5...
h6 {[%clk 0:02:47.2]} 6. O-O {[%clk 0:03:02.7]} 6... Nd7 {[%clk 0:02:47.5]} 7.
c3 {[%clk 0:03:03.2]} 7... Ne7 {[%clk 0:02:47.1]} 8. Na3 {[%clk 0:03:02.7]} 8...
Qc7 {[%clk 0:02:43.5]} 9. Nc2 {[%clk 0:03:01.9]} 9... Bh7 {[%clk 0:02:41]} 10.
b4 {[%clk 0:03:01.6]} 10... a5 {[%clk 0:02:38.4]} 11. a4 {[%clk 0:02:59.8]}
11... axb4 {[%clk 0:02:30.2]} 12. cxb4 {[%clk 0:02:59]} 12... Nf5 {[%clk
0:02:29.4]} 13. g4 {[%clk 0:02:58.1]} 13... Ne7 {[%clk 0:02:29.2]} 14. Nfe1
{[%clk 0:02:57.2]} 14... h5 {[%clk 0:02:26.2]} 15. gxh5 {[%clk 0:02:56.2]} 15...
Nf5 {[%clk 0:02:24.2]} 16. Bd2 {[%clk 0:02:49.7]} 16... Be7 {[%clk 0:02:20.7]}
17. Kh1 {[%clk 0:02:49.5]} 17... b6 {[%clk 0:02:11.7]} 18. f4 {[%clk 0:02:39.2]}
18... c5 {[%clk 0:02:10.7]} 19. dxc5 {[%clk 0:02:39.8]} 19... bxc5 {[%clk
0:02:10.8]} 20. b5 {[%clk 0:02:40.5]} 20... c4 {[%clk 0:01:59.1]} 21. a5 {[%clk
0:02:34.8]} 21... Nc5 {[%clk 0:01:57.3]} 22. b6 {[%clk 0:02:28.8]} 22... Qb7
{[%clk 0:01:56.2]} 23. Bf3 {[%clk 0:02:09.8]} 23... Nb3 {[%clk 0:01:52.9]} 24.
Ra2 {[%clk 0:02:08.3]} 24... Nh4 {[%clk 0:01:42.4]} 25. Bb4 {[%clk 0:02:08.4]}
25... Nxf3 {[%clk 0:01:38.5]} 26. Nxf3 {[%clk 0:02:07.2]} 26... Bxc2 {[%clk
0:01:36.7]} 27. Qxc2 {[%clk 0:02:04.1]} 27... Bxb4 {[%clk 0:01:36.7]} 28. f5
{[%clk 0:02:04]} 28... Rh6 {[%clk 0:01:07]} 29. fxe6 {[%clk 0:01:58]} 29... Rxe6
{[%clk 0:01:01.3]} 30. Qh7 {[%clk 0:01:48.8]} 30... Bf8 {[%clk 0:00:44.8]} 31.
Ng5 {[%clk 0:01:43.7]} 31... d4+ {[%clk 0:00:34.1]} 32. Rg2 {[%clk 0:01:44.1]}
32... Re7 {[%clk 0:00:30.4]} 33. e6 {[%clk 0:01:32.2]} 33... f6 {[%clk
0:00:23.4]} 34. Qg6+ {[%clk 0:01:32.4]} 34... Kd8 {[%clk 0:00:20.6]} 35. h6
{[%clk 0:01:24.4]} 35... Rxa5 {[%clk 0:00:15.9]} 36. h7 {[%clk 0:01:19.8]} 36...
Rxg5 {[%clk 0:00:06.8]} 37. Qxg5 {[%clk 0:01:19.3]} 37... fxg5 {[%clk 0:00:07]}
38. Rxf8+ {[%clk 0:01:19.8]} 38... Re8 {[%clk 0:00:06.6]} 39. Rxe8+ {[%clk
0:01:20.4]} 39... Kxe8 {[%clk 0:00:04.4]} 40. h8=Q+ {[%clk 0:01:20.7]} 40... Ke7
{[%clk 0:00:05.1]} 41. Qxg7+ {[%clk 0:01:19.4]} 41... Kxe6 {[%clk 0:00:05.5]}
42. Qxb7 {[%clk 0:01:19.1]} 42... Nc5 {[%clk 0:00:05.6]} 43. Qc6+ {[%clk
0:01:19.3]} 1-0

[Event "Late-Titled-Tuesday-Blitz-May-14-2024"]
[Site "Chess.com"]
[Date "2024.05.14"]
[Round "10"]
[White "Duhless"]
[Black "LiemLe"]
[Result "1-0"]
[WhiteElo "3131"]
[BlackElo "3054"]
[TimeControl "180+1"]
[EndTime "15:53:31 PDT"]
[Termination "Duhless won by resignation"]

1. d4 {[%clk 0:03:00.4]} 1... d5 {[%clk 0:03:00.3]} 2. c4 {[%clk 0:02:59.7]}
2... e6 {[%clk 0:03:00.9]} 3. Nf3 {[%clk 0:03:00]} 3... Nf6 {[%clk 0:03:01]} 4.
g3 {[%clk 0:03:00.1]} 4... dxc4 {[%clk 0:02:59]} 5. Bg2 {[%clk 0:03:00]} 5...
Bb4+ {[%clk 0:02:59.7]} 6. Nbd2 {[%clk 0:02:58.6]} 6... b5 {[%clk 0:02:51.6]} 7.
Ne5 {[%clk 0:02:56.2]} 7... Nd5 {[%clk 0:02:50.4]} 8. O-O {[%clk 0:02:55.2]}
8... O-O {[%clk 0:02:48.8]} 9. Qc2 {[%clk 0:02:49.7]} 9... Bb7 {[%clk
0:02:28.5]} 10. b3 {[%clk 0:02:49.3]} 10... Bc3 {[%clk 0:02:10.4]} 11. Rb1
{[%clk 0:02:45]} 11... Bxd4 {[%clk 0:02:09.8]} 12. bxc4 {[%clk 0:02:44.7]} 12...
Bxe5 {[%clk 0:02:04.9]} 13. cxd5 {[%clk 0:02:44.4]} 13... a6 {[%clk 0:01:43.1]}
14. Nf3 {[%clk 0:02:25.2]} 14... Bf6 {[%clk 0:01:20.3]} 15. dxe6 {[%clk
0:02:22.8]} 15... Nc6 {[%clk 0:00:56]} 16. Ba3 {[%clk 0:02:01.4]} 16... Be7
{[%clk 0:00:52.9]} 17. Rfd1 {[%clk 0:01:54.9]} 17... Qe8 {[%clk 0:00:52.9]} 18.
Bxe7 {[%clk 0:01:52.9]} 18... Qxe7 {[%clk 0:00:51]} 19. Rd7 {[%clk 0:01:49.9]}
19... Qxe6 {[%clk 0:00:38]} 20. Rxc7 {[%clk 0:01:45.9]} 20... Rab8 {[%clk
0:00:20]} 21. Ng5 {[%clk 0:01:20.5]} 21... Qh6 {[%clk 0:00:20.1]} 22. Bxc6
{[%clk 0:01:20.6]} 22... Bxc6 {[%clk 0:00:20.3]} 23. Nxf7 {[%clk 0:01:21.1]}
23... Rxf7 {[%clk 0:00:18.8]} 24. Rxc6 {[%clk 0:01:21.2]} 24... Rf6 {[%clk
0:00:17.1]} 25. Rc1 {[%clk 0:00:59.3]} 25... Rbf8 {[%clk 0:00:16.9]} 26. e3
{[%clk 0:00:48.8]} 26... Kh8 {[%clk 0:00:16]} 27. Qc5 {[%clk 0:00:38.9]} 27...
Qh3 {[%clk 0:00:09.2]} 28. Rxf6 {[%clk 0:00:35.8]} 1-0

[Event "Late-Titled-Tuesday-Blitz-May-14-2024"]
[Site "Chess.com"]
[Date "2024.05.14"]
[Round "10"]
[White "PNEPaul"]
[Black "giovannibrandao7"]
[Result "0-1"]
[WhiteElo "1906"]
[BlackElo "2286"]
[TimeControl "180+1"]
[EndTime "15:53:31 PDT"]
[Termination "giovannibrandao7 won by resignation"]

1. e4 {[%clk 0:03:00.9]} 1... c5 {[%clk 0:02:59.4]} 2. Nf3 {[%clk 0:03:00.1]}
2... d6 {[%clk 0:02:58.3]} 3. d4 {[%clk 0:02:59.9]} 3... cxd4 {[%clk 0:02:59.2]}
4. c3 {[%clk 0:02:59.8]} 4... Nf6 {[%clk 0:03:00.1]} 5. Bd3 {[%clk 0:02:58.3]}
5... dxc3 {[%clk 0:02:59.1]} 6. Nxc3 {[%clk 0:02:58.4]} 6... Nc6 {[%clk
0:02:59.8]} 7. Bf4 {[%clk 0:02:54.4]} 7... e6 {[%clk 0:02:58.8]} 8. a3 {[%clk
0:02:51.8]} 8... Be7 {[%clk 0:02:59.2]} 9. Qe2 {[%clk 0:02:51.5]} 9... O-O
{[%clk 0:02:59.6]} 10. Rd1 {[%clk 0:02:51.4]} 10... a6 {[%clk 0:02:55.2]} 11. e5
{[%clk 0:02:51]} 11... Nd5 {[%clk 0:02:44.9]} 12. Bg3 {[%clk 0:02:40.9]} 12...
dxe5 {[%clk 0:02:41.8]} 13. Nxe5 {[%clk 0:02:40.5]} 13... Nxe5 {[%clk
0:02:41.3]} 14. Bxe5 {[%clk 0:02:38.5]} 14... Bf6 {[%clk 0:02:39.7]} 15. Bxf6
{[%clk 0:02:22.4]} 15... Qxf6 {[%clk 0:02:37.8]} 16. Nxd5 {[%clk 0:02:04.2]}
16... exd5 {[%clk 0:02:36.6]} 17. O-O {[%clk 0:02:02.5]} 17... Bf5 {[%clk
0:02:32.2]} 18. Qf3 {[%clk 0:01:54.6]} 18... Bxd3 {[%clk 0:02:22.1]} 19. Qxf6
{[%clk 0:01:53.3]} 19... gxf6 {[%clk 0:02:23]} 20. Rxd3 {[%clk 0:01:53.4]} 20...
Rfd8 {[%clk 0:02:23.9]} 21. Rfd1 {[%clk 0:01:53.2]} 21... Rac8 {[%clk
0:02:24.2]} 22. h3 {[%clk 0:01:46.5]} 22... Rc2 {[%clk 0:02:24.5]} 23. R1d2
{[%clk 0:01:35.6]} 23... Rxd2 {[%clk 0:02:22.4]} 24. Rxd2 {[%clk 0:01:35]} 24...
Kg7 {[%clk 0:02:21]} 25. Kf1 {[%clk 0:01:34.8]} 25... f5 {[%clk 0:02:21.4]} 26.
Ke2 {[%clk 0:01:35.1]} 26... Kf6 {[%clk 0:02:22]} 27. Kd3 {[%clk 0:01:34.5]}
27... Ke5 {[%clk 0:02:18.4]} 28. Re2+ {[%clk 0:01:34.1]} 28... Kd6 {[%clk
0:02:19.1]} 29. Kd4 {[%clk 0:01:33.1]} 29... Rc8 {[%clk 0:02:10.8]} 30. Kd3
{[%clk 0:01:23]} 30... f4 {[%clk 0:02:07.2]} 31. b3 {[%clk 0:01:09]} 31... f5
{[%clk 0:02:04.4]} 32. Rd2 {[%clk 0:00:50.1]} 32... Rg8 {[%clk 0:02:02.6]} 33.
f3 {[%clk 0:00:47.4]} 33... Re8 {[%clk 0:02:02.5]} 34. Kc2 {[%clk 0:00:36.4]}
34... Re3 {[%clk 0:02:01]} 35. Kb2 {[%clk 0:00:35.9]} 35... Ke5 {[%clk
0:01:58.8]} 36. Kc2 {[%clk 0:00:34.9]} 36... d4 {[%clk 0:01:58.6]} 37. Rd3
{[%clk 0:00:27.6]} 37... Re2+ {[%clk 0:01:56.5]} 38. Rd2 {[%clk 0:00:27.7]}
38... Re1 {[%clk 0:01:47.9]} 39. Kd3 {[%clk 0:00:24.4]} 39... Kd5 {[%clk
0:01:44]} 40. Re2 {[%clk 0:00:21.2]} 40... Rxe2 {[%clk 0:01:31.1]} 41. Kxe2
{[%clk 0:00:20.6]} 41... a5 {[%clk 0:01:31.7]} 42. Kd3 {[%clk 0:00:20.1]} 42...
b5 {[%clk 0:01:31.2]} 43. Kd2 {[%clk 0:00:20.2]} 43... h5 {[%clk 0:01:26.8]} 44.
Kd3 {[%clk 0:00:20.3]} 44... a4 {[%clk 0:01:24.8]} 45. b4 {[%clk 0:00:19.6]}
45... h4 {[%clk 0:01:24.1]} 46. Kc2 {[%clk 0:00:10.4]} 46... Kc4 {[%clk
0:01:24.5]} 47. Kd2 {[%clk 0:00:10.5]} 47... Kb3 {[%clk 0:01:22.3]} 48. Kd3
{[%clk 0:00:09.4]} 48... Kxa3 {[%clk 0:01:23.2]} 49. Kxd4 {[%clk 0:00:09.1]}
49... Kxb4 {[%clk 0:01:24.1]} 50. Ke5 {[%clk 0:00:09.1]} 50... a3 {[%clk
0:01:24.1]} 0-1

[Event "Late-Titled-Tuesday-Blitz-May-14-2024"]
[Site "Chess.com"]
[Date "2024.05.14"]
[Round "10"]
[White "Atanejhad"]
[Black "rionelG"]
[Result "1-0"]
[WhiteElo "2485"]
[BlackElo "2320"]
[TimeControl "180+1"]
[EndTime "15:53:34 PDT"]
[Termination "Atanejhad won on time"]

1. d4 {[%clk 0:03:00.9]} 1... Nf6 {[%clk 0:02:50.3]} 2. c4 {[%clk 0:03:00.7]}
2... g6 {[%clk 0:02:50.5]} 3. Nc3 {[%clk 0:02:58.4]} 3... Bg7 {[%clk 0:02:50.8]}
4. e4 {[%clk 0:02:58.4]} 4... O-O {[%clk 0:02:51]} 5. f3 {[%clk 0:02:58.9]} 5...
d6 {[%clk 0:02:51.2]} 6. Be3 {[%clk 0:02:58.9]} 6... c5 {[%clk 0:02:51.3]} 7.
dxc5 {[%clk 0:02:58.5]} 7... dxc5 {[%clk 0:02:52.2]} 8. Qxd8 {[%clk 0:02:58.3]}
8... Rxd8 {[%clk 0:02:53.1]} 9. Bxc5 {[%clk 0:02:58.3]} 9... Nc6 {[%clk
0:02:52.5]} 10. Rd1 {[%clk 0:02:58.5]} 10... Rxd1+ {[%clk 0:02:50.9]} 11. Kxd1
{[%clk 0:02:59.4]} 11... b6 {[%clk 0:02:42]} 12. Ba3 {[%clk 0:02:58.5]} 12...
Nd7 {[%clk 0:02:33.3]} 13. Nd5 {[%clk 0:02:55]} 13... e6 {[%clk 0:02:27.7]} 14.
Nc7 {[%clk 0:02:54.9]} 14... Rb8 {[%clk 0:02:26.9]} 15. Nb5 {[%clk 0:02:54.9]}
15... Ba6 {[%clk 0:02:20.9]} 16. Ne2 {[%clk 0:02:50.8]} 16... Nde5 {[%clk
0:02:05.4]} 17. Nec3 {[%clk 0:02:47.8]} 17... Rd8+ {[%clk 0:01:50.9]} 18. Kc2
{[%clk 0:02:46.3]} 18... Bh6 {[%clk 0:01:49.8]} 19. Nd6 {[%clk 0:02:27.2]} 19...
Nd4+ {[%clk 0:01:14.8]} 20. Kb1 {[%clk 0:02:24.1]} 20... Bf8 {[%clk 0:01:14.4]}
21. c5 {[%clk 0:02:23.7]} 21... Bxf1 {[%clk 0:01:07.6]} 22. Rxf1 {[%clk
0:02:23.7]} 22... bxc5 {[%clk 0:01:05.2]} 23. Nb7 {[%clk 0:02:03.4]} 23... Rb8
{[%clk 0:01:01.6]} 24. Na5 {[%clk 0:01:57.6]} 24... c4 {[%clk 0:00:31.9]} 25.
Bxf8 {[%clk 0:01:53.7]} 25... Kxf8 {[%clk 0:00:32.8]} 26. f4 {[%clk 0:01:46.8]}
26... Ndc6 {[%clk 0:00:28.7]} 27. Nxc6 {[%clk 0:01:45.2]} 27... Nxc6 {[%clk
0:00:28.3]} 28. Rd1 {[%clk 0:01:44.6]} 28... Rd8 {[%clk 0:00:22.6]} 29. Rxd8+
{[%clk 0:01:42.9]} 29... Nxd8 {[%clk 0:00:23.5]} 30. Nb5 {[%clk 0:01:42.1]}
30... Nc6 {[%clk 0:00:21.7]} 31. Nd6 {[%clk 0:01:40.2]} 31... f5 {[%clk
0:00:12.8]} 32. exf5 {[%clk 0:01:37.1]} 32... gxf5 {[%clk 0:00:10.6]} 33. Nxc4
{[%clk 0:01:37]} 33... Nd4 {[%clk 0:00:10.6]} 34. b4 {[%clk 0:01:28.1]} 34... h5
{[%clk 0:00:08.5]} 35. g3 {[%clk 0:01:26.9]} 35... Nf3 {[%clk 0:00:05.5]} 36. h4
{[%clk 0:01:23.3]} 36... Nd4 {[%clk 0:00:05.3]} 37. a4 {[%clk 0:01:18.9]} 37...
Ne2 {[%clk 0:00:05.2]} 38. b5 {[%clk 0:01:18.3]} 38... Nc3+ {[%clk 0:00:03.1]}
39. Kc2 {[%clk 0:01:18.3]} 39... Nxa4 {[%clk 0:00:03.7]} 40. Kd3 {[%clk
0:01:18.2]} 40... Ke7 {[%clk 0:00:02.8]} 41. Ne5 {[%clk 0:01:18.1]} 1-0

[Event "Late-Titled-Tuesday-Blitz-May-14-2024"]
[Site "Chess.com"]
[Date "2024.05.14"]
[Round "10"]
[White "Boninknights"]
[Black "jinxy2009"]
[Result "1-0"]
[WhiteElo "2389"]
[BlackElo "2302"]
[TimeControl "180+1"]
[EndTime "15:53:40 PDT"]
[Termination "Boninknights won by resignation"]

1. d4 {[%clk 0:02:59.4]} 1... d5 {[%clk 0:02:58.8]} 2. Nf3 {[%clk 0:02:58.8]}
2... Nf6 {[%clk 0:02:58.7]} 3. c4 {[%clk 0:02:58.6]} 3... c6 {[%clk 0:02:58.6]}
4. Qb3 {[%clk 0:02:57.2]} 4... e6 {[%clk 0:02:43.7]} 5. Nc3 {[%clk 0:02:54.5]}
5... Nbd7 {[%clk 0:02:36.9]} 6. Bg5 {[%clk 0:02:49.4]} 6... h6 {[%clk
0:02:34.6]} 7. Bh4 {[%clk 0:02:48.1]} 7... Be7 {[%clk 0:02:18.8]} 8. e3 {[%clk
0:02:46.3]} 8... O-O {[%clk 0:02:18.9]} 9. Bd3 {[%clk 0:02:44]} 9... dxc4 {[%clk
0:02:18.9]} 10. Qxc4 {[%clk 0:02:42.9]} 10... c5 {[%clk 0:02:11.7]} 11. O-O
{[%clk 0:02:30.1]} 11... b6 {[%clk 0:02:06.1]} 12. Rfd1 {[%clk 0:02:24.1]} 12...
Bb7 {[%clk 0:02:02.5]} 13. Be2 {[%clk 0:02:09.3]} 13... Nd5 {[%clk 0:01:51.9]}
14. dxc5 {[%clk 0:02:02.1]} 14... Bxh4 {[%clk 0:01:47.9]} 15. Nxh4 {[%clk
0:02:00.2]} 15... Nxc3 {[%clk 0:01:42.3]} 16. Qxc3 {[%clk 0:01:56.8]} 16... Rc8
{[%clk 0:01:28.2]} 17. b4 {[%clk 0:01:48.7]} 17... bxc5 {[%clk 0:01:25.9]} 18.
Nf3 {[%clk 0:01:33.9]} 18... Qe7 {[%clk 0:01:22.7]} 19. b5 {[%clk 0:01:29.1]}
19... Rfd8 {[%clk 0:01:15.1]} 20. a4 {[%clk 0:01:27.3]} 20... Nf6 {[%clk
0:01:10.9]} 21. Ne5 {[%clk 0:01:20.2]} 21... Ne4 {[%clk 0:00:58.2]} 22. Qb2
{[%clk 0:01:13.4]} 22... Qh4 {[%clk 0:00:46]} 23. g3 {[%clk 0:01:07.8]} 23...
Qh3 {[%clk 0:00:39.8]} 24. Bf3 {[%clk 0:01:06.6]} 24... f6 {[%clk 0:00:31.1]}
25. Bg4 {[%clk 0:01:00.3]} 25... Ng5 {[%clk 0:00:04.2]} 26. Bxh3 {[%clk
0:00:58.4]} 26... Nxh3+ {[%clk 0:00:04.7]} 27. Kf1 {[%clk 0:00:58.4]} 27... fxe5
{[%clk 0:00:04.9]} 28. Qxe5 {[%clk 0:00:56.1]} 28... Ng5 {[%clk 0:00:04.8]} 29.
h4 {[%clk 0:00:48.3]} 29... Nf3 {[%clk 0:00:03.2]} 30. Qxe6+ {[%clk 0:00:47.8]}
30... Kh8 {[%clk 0:00:03.7]} 31. Rxd8+ {[%clk 0:00:45.7]} 31... Rxd8 {[%clk
0:00:04.6]} 32. Qe7 {[%clk 0:00:45.4]} 32... Rd2 {[%clk 0:00:03.6]} 33. Qxb7
{[%clk 0:00:44.1]} 1-0